[Event "Late-Titled-Tuesday-Blitz-September-26-2023"]
[Site "Chess.com"]
[Date "2023.09.26"]
[Round "3"]
[White "2346PL"]
[Black "Gameking51"]
[Result "1-0"]
[WhiteElo "2446"]
[BlackElo "2597"]
[TimeControl "180+1"]
[EndTime "14:25:48 PDT"]
[Termination "2346PL won on time"]

1. Nf3 {[%clk 0:03:00.9]} 1... Nf6 {[%clk 0:02:51.1]} 2. d4 {[%clk 0:03:01.1]}
2... e6 {[%clk 0:02:51]} 3. Bg5 {[%clk 0:03:00.8]} 3... Be7 {[%clk 0:02:47.8]}
4. Nbd2 {[%clk 0:03:01]} 4... h6 {[%clk 0:02:47.1]} 5. Bh4 {[%clk 0:03:00.8]}
5... d5 {[%clk 0:02:46.8]} 6. e3 {[%clk 0:03:01.3]} 6... c5 {[%clk 0:02:47.1]}
7. c3 {[%clk 0:03:00.5]} 7... Nc6 {[%clk 0:02:47.7]} 8. Bd3 {[%clk 0:03:00.5]}
8... O-O {[%clk 0:02:46.4]} 9. O-O {[%clk 0:03:00.3]} 9... b6 {[%clk 0:02:20.7]}
10. Ne5 {[%clk 0:02:59.9]} 10... Nxe5 {[%clk 0:02:16.6]} 11. dxe5 {[%clk
0:03:00.8]} 11... Nd7 {[%clk 0:02:16.3]} 12. Bxe7 {[%clk 0:03:01.2]} 12... Qxe7
{[%clk 0:02:17.2]} 13. f4 {[%clk 0:03:01.6]} 13... Bb7 {[%clk 0:01:52.7]} 14.
Qh5 {[%clk 0:03:01]} 14... Rfe8 {[%clk 0:01:38.5]} 15. g4 {[%clk 0:02:58.8]}
15... f6 {[%clk 0:01:37.9]} 16. Nf3 {[%clk 0:02:52.3]} 16... Nf8 {[%clk
0:01:14.5]} 17. exf6 {[%clk 0:02:45.4]} 17... Qxf6 {[%clk 0:01:14.7]} 18. g5
{[%clk 0:02:44.5]} 18... Qf7 {[%clk 0:01:09.3]} 19. Qg4 {[%clk 0:02:27]} 19...
h5 {[%clk 0:00:53.6]} 20. Qg3 {[%clk 0:02:22.7]} 20... Nd7 {[%clk 0:00:41.1]}
21. g6 {[%clk 0:02:22.4]} 21... Qf6 {[%clk 0:00:39.3]} 22. Ne5 {[%clk
0:02:19.3]} 22... Rad8 {[%clk 0:00:36.1]} 23. Nf7 {[%clk 0:01:58.7]} 23... Rb8
{[%clk 0:00:27.8]} 24. Qh3 {[%clk 0:01:57.5]} 24... h4 {[%clk 0:00:26]} 25. Qg4
{[%clk 0:01:56.5]} 25... d4 {[%clk 0:00:23.6]} 26. cxd4 {[%clk 0:01:51.7]} 26...
cxd4 {[%clk 0:00:23.3]} 27. e4 {[%clk 0:01:52.2]} 27... Nc5 {[%clk 0:00:21.6]}
28. e5 {[%clk 0:01:31.6]} 1-0

[Event "Late-Titled-Tuesday-Blitz-September-26-2023"]
[Site "Chess.com"]
[Date "2023.09.26"]
[Round "3"]
[White "NotFischer"]
[Black "pedromartinez91"]
[Result "0-1"]
[WhiteElo "2255"]
[BlackElo "2538"]
[TimeControl "180+1"]
[EndTime "14:25:52 PDT"]
[Termination "pedromartinez91 won by checkmate"]

1. e4 {[%clk 0:03:00.9]} 1... c5 {[%clk 0:02:59.9]} 2. Nf3 {[%clk 0:03:00.1]}
2... Nc6 {[%clk 0:03:00.4]} 3. Bb5 {[%clk 0:02:59.6]} 3... Na5 {[%clk
0:02:59.7]} 4. O-O {[%clk 0:02:58.3]} 4... a6 {[%clk 0:03:00]} 5. Be2 {[%clk
0:02:57.3]} 5... e6 {[%clk 0:03:00.6]} 6. d4 {[%clk 0:02:54.1]} 6... cxd4 {[%clk
0:03:01.5]} 7. Nxd4 {[%clk 0:02:53.9]} 7... d6 {[%clk 0:03:02.4]} 8. Nc3 {[%clk
0:02:52.4]} 8... Nf6 {[%clk 0:03:02.8]} 9. Kh1 {[%clk 0:02:47.6]} 9... Qc7
{[%clk 0:03:03]} 10. Be3 {[%clk 0:02:44.3]} 10... Be7 {[%clk 0:03:03.4]} 11. f4
{[%clk 0:02:42.4]} 11... Nc4 {[%clk 0:03:04]} 12. Bxc4 {[%clk 0:02:20]} 12...
Qxc4 {[%clk 0:03:04.9]} 13. Qf3 {[%clk 0:02:18.9]} 13... e5 {[%clk 0:03:01.6]}
14. Nf5 {[%clk 0:02:01.2]} 14... Bxf5 {[%clk 0:03:01.3]} 15. exf5 {[%clk
0:02:00.8]} 15... e4 {[%clk 0:03:02.1]} 16. Qg3 {[%clk 0:01:56.3]} 16... d5
{[%clk 0:03:02.5]} 17. Rad1 {[%clk 0:01:49.1]} 17... h5 {[%clk 0:03:01.5]} 18.
Bd4 {[%clk 0:01:44.3]} 18... Rd8 {[%clk 0:02:55.2]} 19. Qxg7 {[%clk 0:01:38]}
19... Rg8 {[%clk 0:02:55.3]} 20. Qh6 {[%clk 0:01:37.1]} 20... Qc6 {[%clk
0:02:55.3]} 21. Bxf6 {[%clk 0:01:24.5]} 21... Bxf6 {[%clk 0:02:48.1]} 22. Rxd5
{[%clk 0:01:10.1]} 22... Rh8 {[%clk 0:02:40.7]} 23. Re5+ {[%clk 0:00:43.3]}
23... Bxe5 {[%clk 0:02:17.8]} 24. Qxc6+ {[%clk 0:00:42.6]} 24... bxc6 {[%clk
0:02:18.7]} 25. fxe5 {[%clk 0:00:43]} 25... e3 {[%clk 0:02:13.9]} 26. Re1 {[%clk
0:00:39.2]} 26... Rd2 {[%clk 0:02:13.6]} 27. Rxe3 {[%clk 0:00:37.1]} 27... Rxc2
{[%clk 0:02:13.9]} 28. h3 {[%clk 0:00:32.3]} 28... h4 {[%clk 0:02:10.6]} 29. Ne4
{[%clk 0:00:28.6]} 29... Kd7 {[%clk 0:02:06.9]} 30. Rb3 {[%clk 0:00:24.2]} 30...
Kc7 {[%clk 0:02:06.4]} 31. Nd6 {[%clk 0:00:22.6]} 31... c5 {[%clk 0:01:58.4]}
32. Rb7+ {[%clk 0:00:22.1]} 32... Kc6 {[%clk 0:01:58.8]} 33. Rxf7 {[%clk
0:00:20]} 33... Rg8 {[%clk 0:01:57.7]} 34. Ra7 {[%clk 0:00:17.8]} 34... Rgxg2
{[%clk 0:01:55.4]} 35. Rxa6+ {[%clk 0:00:18.1]} 35... Kd5 {[%clk 0:01:56.2]} 36.
Nf7 {[%clk 0:00:10.7]} 36... Ke4 {[%clk 0:01:50.3]} 37. Ra4+ {[%clk 0:00:07.9]}
37... Kf3 {[%clk 0:01:48.3]} 38. e6 {[%clk 0:00:02.5]} 38... Rh2+ {[%clk
0:01:48.3]} 39. Kg1 {[%clk 0:00:02.9]} 39... Rcg2+ {[%clk 0:01:49.2]} 40. Kf1
{[%clk 0:00:03.2]} 40... Rh1# {[%clk 0:01:50.1]} 0-1

[Event "Late-Titled-Tuesday-Blitz-September-26-2023"]
[Site "Chess.com"]
[Date "2023.09.26"]
[Round "3"]
[White "cukus"]
[Black "miraitrunks"]
[Result "0-1"]
[WhiteElo "2370"]
[BlackElo "2164"]
[TimeControl "180+1"]
[EndTime "14:25:52 PDT"]
[Termination "miraitrunks won by checkmate"]

1. e4 {[%clk 0:02:51.3]} 1... c5 {[%clk 0:02:58.9]} 2. Nf3 {[%clk 0:02:48.8]}
2... Nc6 {[%clk 0:02:56.8]} 3. d4 {[%clk 0:02:48.6]} 3... cxd4 {[%clk
0:02:57.5]} 4. Nxd4 {[%clk 0:02:49.5]} 4... e5 {[%clk 0:02:57.3]} 5. Nb5 {[%clk
0:02:47.3]} 5... a6 {[%clk 0:02:57.3]} 6. Nd6+ {[%clk 0:02:46.3]} 6... Bxd6
{[%clk 0:02:57.6]} 7. Qxd6 {[%clk 0:02:47.2]} 7... Qf6 {[%clk 0:02:57.4]} 8. Qd2
{[%clk 0:02:39.1]} 8... Nge7 {[%clk 0:02:56.7]} 9. b3 {[%clk 0:02:36.6]} 9...
O-O {[%clk 0:02:55.7]} 10. Bb2 {[%clk 0:02:36.5]} 10... Rd8 {[%clk 0:02:49.8]}
11. Nc3 {[%clk 0:02:35.4]} 11... Nd4 {[%clk 0:02:41.9]} 12. O-O-O {[%clk
0:02:34.8]} 12... d5 {[%clk 0:02:38.7]} 13. exd5 {[%clk 0:02:29.1]} 13... Nxd5
{[%clk 0:02:39]} 14. Bc4 {[%clk 0:02:27.2]} 14... Nxc3 {[%clk 0:02:37.3]} 15.
Qxc3 {[%clk 0:02:13]} 15... b5 {[%clk 0:02:36.7]} 16. Bd3 {[%clk 0:02:06.6]}
16... Bf5 {[%clk 0:02:33.4]} 17. Qb4 {[%clk 0:01:11.8]} 17... Rac8 {[%clk
0:02:20.6]} 18. Bxf5 {[%clk 0:01:06.5]} 18... Qxf5 {[%clk 0:02:14.4]} 19. Kb1
{[%clk 0:00:41.2]} 19... Nxc2 {[%clk 0:01:24.7]} 20. Rxd8+ {[%clk 0:00:36.1]}
20... Rxd8 {[%clk 0:01:17.8]} 21. Qc3 {[%clk 0:00:29.4]} 21... Nd4+ {[%clk
0:01:10.3]} 22. Ka1 {[%clk 0:00:26.7]} 22... Rc8 {[%clk 0:01:09.8]} 23. Qh3
{[%clk 0:00:22.9]} 23... Nc2+ {[%clk 0:01:03.6]} 24. Kb1 {[%clk 0:00:22.7]}
24... Na3+ {[%clk 0:01:02.8]} 25. Ka1 {[%clk 0:00:22.8]} 25... Qb1+ {[%clk
0:01:01.9]} 26. Rxb1 {[%clk 0:00:22.8]} 26... Nc2# {[%clk 0:01:01.9]} 0-1

[Event "Late-Titled-Tuesday-Blitz-September-26-2023"]
[Site "Chess.com"]
[Date "2023.09.26"]
[Round "3"]
[White "GAO"]
[Black "Andrej2004"]
[Result "0-1"]
[WhiteElo "2342"]
[BlackElo "2561"]
[TimeControl "180+1"]
[EndTime "14:25:54 PDT"]
[Termination "Andrej2004 won by checkmate"]

1. Nf3 {[%clk 0:02:55]} 1... b6 {[%clk 0:02:59.3]} 2. d4 {[%clk 0:02:47.6]} 2...
Bb7 {[%clk 0:02:59.9]} 3. Nc3 {[%clk 0:02:47.7]} 3... Nf6 {[%clk 0:03:00.5]} 4.
Bg5 {[%clk 0:02:46.8]} 4... g6 {[%clk 0:02:59.1]} 5. Bxf6 {[%clk 0:02:46]} 5...
exf6 {[%clk 0:03:00]} 6. e4 {[%clk 0:02:46.1]} 6... Bg7 {[%clk 0:02:59.1]} 7.
Bd3 {[%clk 0:02:46.3]} 7... O-O {[%clk 0:02:58.2]} 8. O-O {[%clk 0:02:46.8]}
8... d5 {[%clk 0:02:43.9]} 9. Re1 {[%clk 0:02:44.1]} 9... dxe4 {[%clk
0:02:42.9]} 10. Bxe4 {[%clk 0:02:44.3]} 10... Nc6 {[%clk 0:02:37.2]} 11. Ne2
{[%clk 0:02:28.6]} 11... Qd6 {[%clk 0:02:35.8]} 12. c3 {[%clk 0:02:27.7]} 12...
Rad8 {[%clk 0:02:34.6]} 13. Nc1 {[%clk 0:02:27.6]} 13... f5 {[%clk 0:02:27.7]}
14. Bd3 {[%clk 0:02:27.5]} 14... Ne7 {[%clk 0:02:21.2]} 15. a4 {[%clk
0:02:21.3]} 15... c5 {[%clk 0:02:15.2]} 16. Ne2 {[%clk 0:02:04.2]} 16... Bxf3
{[%clk 0:02:02.1]} 17. gxf3 {[%clk 0:02:00.9]} 17... Nc6 {[%clk 0:01:27.8]} 18.
Bb5 {[%clk 0:01:57.7]} 18... cxd4 {[%clk 0:01:15.9]} 19. Bxc6 {[%clk 0:01:57.2]}
19... Qxc6 {[%clk 0:01:16]} 20. Nxd4 {[%clk 0:01:57.8]} 20... Qc4 {[%clk
0:01:16.4]} 21. Qe2 {[%clk 0:01:55.5]} 21... Qxe2 {[%clk 0:01:04.8]} 22. Rxe2
{[%clk 0:01:53.8]} 22... Bxd4 {[%clk 0:01:04.1]} 23. cxd4 {[%clk 0:01:54.7]}
23... Rxd4 {[%clk 0:01:04.5]} 24. a5 {[%clk 0:01:51.5]} 24... b5 {[%clk
0:00:59]} 25. a6 {[%clk 0:01:34.8]} 25... Rd7 {[%clk 0:00:58.6]} 26. Re5 {[%clk
0:01:32.8]} 26... Rb8 {[%clk 0:00:58.1]} 27. Ra5 {[%clk 0:01:32.7]} 27... b4
{[%clk 0:00:56.5]} 28. Rab5 {[%clk 0:01:30.4]} 28... Rxb5 {[%clk 0:00:51.9]} 29.
Rxb5 {[%clk 0:01:31.3]} 29... Rd6 {[%clk 0:00:52.5]} 30. Rxb4 {[%clk 0:01:13]}
30... Rxa6 {[%clk 0:00:52.5]} 31. Rb8+ {[%clk 0:01:13.9]} 31... Kg7 {[%clk
0:00:51.7]} 32. b4 {[%clk 0:01:14.5]} 32... Rb6 {[%clk 0:00:51.6]} 33. Ra8
{[%clk 0:01:12.1]} 33... Rb7 {[%clk 0:00:49.2]} 34. Kf1 {[%clk 0:01:08.6]} 34...
Kf6 {[%clk 0:00:49.6]} 35. Ke2 {[%clk 0:01:08.8]} 35... Ke5 {[%clk 0:00:48.6]}
36. Kd3 {[%clk 0:01:08.9]} 36... Kf4 {[%clk 0:00:48.6]} 37. Ke2 {[%clk
0:01:08.8]} 37... Re7+ {[%clk 0:00:48.2]} 38. Kf1 {[%clk 0:01:06.7]} 38... Kxf3
{[%clk 0:00:48.4]} 39. Rb8 {[%clk 0:01:06.1]} 39... Rc7 {[%clk 0:00:48.1]} 40.
b5 {[%clk 0:01:06.1]} 40... Rc1# {[%clk 0:00:47.8]} 0-1

[Event "Late-Titled-Tuesday-Blitz-September-26-2023"]
[Site "Chess.com"]
[Date "2023.09.26"]
[Round "3"]
[White "chesselephant"]
[Black "invisible_s0ul"]
[Result "1-0"]
[WhiteElo "2522"]
[BlackElo "2289"]
[TimeControl "180+1"]
[EndTime "14:25:55 PDT"]
[Termination "chesselephant won on time"]

1. d4 {[%clk 0:03:00.9]} 1... d5 {[%clk 0:02:55.9]} 2. c4 {[%clk 0:03:00.9]}
2... e6 {[%clk 0:02:56.4]} 3. Nc3 {[%clk 0:03:01.2]} 3... Nf6 {[%clk 0:02:47.1]}
4. cxd5 {[%clk 0:02:58.7]} 4... exd5 {[%clk 0:02:46.7]} 5. Bg5 {[%clk
0:02:58.5]} 5... c6 {[%clk 0:02:46.6]} 6. e3 {[%clk 0:02:58.8]} 6... Bd6 {[%clk
0:02:42.3]} 7. Bd3 {[%clk 0:02:58.7]} 7... Nbd7 {[%clk 0:02:42.7]} 8. Nge2
{[%clk 0:02:58.4]} 8... Nf8 {[%clk 0:02:42.9]} 9. Qc2 {[%clk 0:02:57.9]} 9...
Ng6 {[%clk 0:02:39.6]} 10. O-O-O {[%clk 0:02:37.7]} 10... b5 {[%clk 0:02:37.4]}
11. h4 {[%clk 0:02:33]} 11... Nf8 {[%clk 0:02:12.3]} 12. Nxb5 {[%clk 0:02:05.3]}
12... cxb5 {[%clk 0:01:47]} 13. Qc6+ {[%clk 0:02:04.5]} 13... Bd7 {[%clk
0:01:20]} 14. Qxd6 {[%clk 0:02:03.6]} 14... Rc8+ {[%clk 0:01:13.1]} 15. Kb1
{[%clk 0:02:03.2]} 15... Ne6 {[%clk 0:01:07.7]} 16. Rc1 {[%clk 0:01:56.5]} 16...
h6 {[%clk 0:00:10.6]} 17. Rxc8 {[%clk 0:01:54.3]} 17... Bxc8 {[%clk 0:00:09]}
18. Bxb5+ {[%clk 0:01:44.3]} 18... Bd7 {[%clk 0:00:08.8]} 19. Bxf6 {[%clk
0:01:42.1]} 19... gxf6 {[%clk 0:00:05.7]} 20. Qxd5 {[%clk 0:01:29.6]} 20... Rg8
{[%clk 0:00:03.3]} 21. Qxd7+ {[%clk 0:01:27.7]} 21... Qxd7 {[%clk 0:00:02.7]}
22. Bxd7+ {[%clk 0:01:28.6]} 22... Kxd7 {[%clk 0:00:03.5]} 23. g3 {[%clk
0:01:29.1]} 23... Kd6 {[%clk 0:00:03]} 24. Rc1 {[%clk 0:01:29]} 24... Nc7 {[%clk
0:00:02.2]} 25. Nc3 {[%clk 0:01:27.7]} 25... Nd5 {[%clk 0:00:03.1]} 26. Ne4+
{[%clk 0:01:19.9]} 1-0

[Event "Late-Titled-Tuesday-Blitz-September-26-2023"]
[Site "Chess.com"]
[Date "2023.09.26"]
[Round "3"]
[White "MAGMAchess02"]
[Black "SaqoChess_Twitch"]
[Result "0-1"]
[WhiteElo "2363"]
[BlackElo "2643"]
[TimeControl "180+1"]
[EndTime "14:25:56 PDT"]
[Termination "SaqoChess_Twitch won on time"]

1. Nf3 {[%clk 0:03:00.9]} 1... d5 {[%clk 0:03:00.2]} 2. c4 {[%clk 0:03:00.3]}
2... e6 {[%clk 0:03:01.1]} 3. g3 {[%clk 0:03:00.2]} 3... Nf6 {[%clk 0:03:01.1]}
4. Bg2 {[%clk 0:03:00.3]} 4... Be7 {[%clk 0:03:01.4]} 5. d4 {[%clk 0:02:58.2]}
5... O-O {[%clk 0:03:01.9]} 6. O-O {[%clk 0:02:58.4]} 6... dxc4 {[%clk
0:03:02.1]} 7. Qc2 {[%clk 0:02:59]} 7... a6 {[%clk 0:03:02.3]} 8. a4 {[%clk
0:02:58.4]} 8... c5 {[%clk 0:03:01.6]} 9. dxc5 {[%clk 0:02:53.5]} 9... Bxc5
{[%clk 0:03:02.5]} 10. Qxc4 {[%clk 0:02:48.2]} 10... Nbd7 {[%clk 0:03:01.5]} 11.
Qc2 {[%clk 0:02:36.2]} 11... b5 {[%clk 0:02:58.8]} 12. axb5 {[%clk 0:02:33.9]}
12... Bb7 {[%clk 0:02:58.6]} 13. bxa6 {[%clk 0:02:28.9]} 13... Ra7 {[%clk
0:02:58.3]} 14. axb7 {[%clk 0:01:46.4]} 14... Rxa1 {[%clk 0:02:57.6]} 15. b4
{[%clk 0:01:46.5]} 15... Bd6 {[%clk 0:02:43.9]} 16. Nd4 {[%clk 0:01:36.6]} 16...
Qb6 {[%clk 0:02:35.4]} 17. Bb2 {[%clk 0:01:21.3]} 17... Ra2 {[%clk 0:02:26.7]}
18. Qb3 {[%clk 0:01:16]} 18... Ra7 {[%clk 0:02:20.3]} 19. Rd1 {[%clk 0:00:31]}
19... Bxb4 {[%clk 0:02:10.1]} 20. Nc6 {[%clk 0:00:26.3]} 20... Rxb7 {[%clk
0:02:01.4]} 21. Nxb4 {[%clk 0:00:10.8]} 21... Qxb4 {[%clk 0:02:01.3]} 22. Qxb4
{[%clk 0:00:10.3]} 22... Rxb4 {[%clk 0:02:02.2]} 23. Ba3 {[%clk 0:00:10.7]}
23... Rxb1 {[%clk 0:01:59.7]} 24. Rxb1 {[%clk 0:00:09.9]} 24... Rc8 {[%clk
0:02:00.2]} 25. e3 {[%clk 0:00:09.2]} 25... h6 {[%clk 0:01:59.1]} 26. Bd6 {[%clk
0:00:08.7]} 26... Nf8 {[%clk 0:01:58.4]} 27. h3 {[%clk 0:00:08.7]} 27... Ng6
{[%clk 0:01:58.7]} 28. h4 {[%clk 0:00:04.5]} 28... Rd8 {[%clk 0:01:57.4]} 29.
Bc5 {[%clk 0:00:03]} 29... Ne5 {[%clk 0:01:56.4]} 30. Bd4 {[%clk 0:00:03.4]}
30... Neg4 {[%clk 0:01:54.6]} 31. Bh3 {[%clk 0:00:03]} 31... h5 {[%clk
0:01:53.9]} 32. Bxg4 {[%clk 0:00:02.8]} 32... Nxg4 {[%clk 0:01:53.4]} 33. Rb6
{[%clk 0:00:01.6]} 33... e5 {[%clk 0:01:53.3]} 34. Bc3 {[%clk 0:00:01.9]} 34...
Rc8 {[%clk 0:01:52.1]} 35. Rb3 {[%clk 0:00:01.5]} 35... f6 {[%clk 0:01:51.7]}
36. Kg2 {[%clk 0:00:02.1]} 36... Ra8 {[%clk 0:01:49.8]} 37. Rb4 {[%clk
0:00:02.3]} 37... Ra3 {[%clk 0:01:49.3]} 38. Rc4 {[%clk 0:00:02.3]} 38... Ra2
{[%clk 0:01:49.3]} 39. Rc8+ {[%clk 0:00:01.8]} 39... Kh7 {[%clk 0:01:48.6]} 0-1

[Event "Late-Titled-Tuesday-Blitz-September-26-2023"]
[Site "Chess.com"]
[Date "2023.09.26"]
[Round "3"]
[White "Chessbard1972"]
[Black "JiiHart"]
[Result "0-1"]
[WhiteElo "2370"]
[BlackElo "2183"]
[TimeControl "180+1"]
[EndTime "14:26:05 PDT"]
[Termination "JiiHart won by checkmate"]

1. e4 {[%clk 0:02:48.4]} 1... c5 {[%clk 0:02:59.4]} 2. Nc3 {[%clk 0:02:47.6]}
2... e6 {[%clk 0:02:59.3]} 3. g3 {[%clk 0:02:47.7]} 3... Nc6 {[%clk 0:02:55.4]}
4. Bg2 {[%clk 0:02:39.5]} 4... Nf6 {[%clk 0:02:39.7]} 5. d3 {[%clk 0:02:37.7]}
5... Be7 {[%clk 0:02:32.6]} 6. f4 {[%clk 0:02:35.3]} 6... d6 {[%clk 0:02:29.2]}
7. Nf3 {[%clk 0:02:34.4]} 7... Qc7 {[%clk 0:02:25.1]} 8. O-O {[%clk 0:02:33.8]}
8... a6 {[%clk 0:02:20.7]} 9. a4 {[%clk 0:02:32.5]} 9... Rb8 {[%clk 0:02:18.8]}
10. h3 {[%clk 0:02:29.7]} 10... b5 {[%clk 0:02:07.3]} 11. axb5 {[%clk
0:02:28.9]} 11... axb5 {[%clk 0:02:07.6]} 12. g4 {[%clk 0:02:27.9]} 12... b4
{[%clk 0:02:05.9]} 13. Ne2 {[%clk 0:02:27.3]} 13... d5 {[%clk 0:01:39.4]} 14.
Ng3 {[%clk 0:02:21.4]} 14... dxe4 {[%clk 0:01:34.2]} 15. dxe4 {[%clk 0:02:21.1]}
15... Nd4 {[%clk 0:01:23]} 16. c3 {[%clk 0:02:17.1]} 16... bxc3 {[%clk
0:01:17.9]} 17. bxc3 {[%clk 0:02:16.8]} 17... Nb3 {[%clk 0:01:14.8]} 18. Rb1
{[%clk 0:02:04.3]} 18... Nxc1 {[%clk 0:01:14.3]} 19. Rxb8 {[%clk 0:02:01.3]}
19... Qxb8 {[%clk 0:01:10]} 20. Qxc1 {[%clk 0:02:01.5]} 20... Bb7 {[%clk
0:01:08.3]} 21. Qe3 {[%clk 0:01:57]} 21... O-O {[%clk 0:00:48.7]} 22. g5 {[%clk
0:01:49.5]} 22... Nd7 {[%clk 0:00:48.2]} 23. Rd1 {[%clk 0:01:47.1]} 23... Rd8
{[%clk 0:00:47]} 24. Rb1 {[%clk 0:01:42.5]} 24... Qc7 {[%clk 0:00:44.8]} 25. Nh5
{[%clk 0:01:27]} 25... c4 {[%clk 0:00:44.5]} 26. Kh1 {[%clk 0:01:22.3]} 26...
Bc5 {[%clk 0:00:42.6]} 27. Qc1 {[%clk 0:01:17.2]} 27... Bxe4 {[%clk 0:00:39.4]}
28. Ra1 {[%clk 0:01:13.2]} 28... Qc6 {[%clk 0:00:38.9]} 29. Qf1 {[%clk
0:01:08.7]} 29... g6 {[%clk 0:00:33.6]} 30. Nf6+ {[%clk 0:01:05.5]} 30... Nxf6
{[%clk 0:00:33.7]} 31. gxf6 {[%clk 0:01:05.9]} 31... Rd3 {[%clk 0:00:32.3]} 32.
Ne5 {[%clk 0:01:01.3]} 32... Rxh3# {[%clk 0:00:24.2]} 0-1

[Event "Late-Titled-Tuesday-Blitz-September-26-2023"]
[Site "Chess.com"]
[Date "2023.09.26"]
[Round "3"]
[White "aNaartjieZA"]
[Black "ShiroglanTalibov"]
[Result "0-1"]
[WhiteElo "2594"]
[BlackElo "2841"]
[TimeControl "180+1"]
[EndTime "14:26:10 PDT"]
[Termination "ShiroglanTalibov won by resignation"]

1. e4 {[%clk 0:03:00.9]} 1... c5 {[%clk 0:02:56.1]} 2. Nf3 {[%clk 0:03:01]} 2...
e6 {[%clk 0:02:56.3]} 3. d3 {[%clk 0:03:00.7]} 3... b5 {[%clk 0:02:55]} 4. a4
{[%clk 0:02:57.8]} 4... b4 {[%clk 0:02:54.2]} 5. g3 {[%clk 0:02:58.1]} 5... Bb7
{[%clk 0:02:53.8]} 6. Bg2 {[%clk 0:02:58.1]} 6... d5 {[%clk 0:02:53.9]} 7. Nbd2
{[%clk 0:02:57.9]} 7... Nf6 {[%clk 0:02:52.5]} 8. O-O {[%clk 0:02:57.4]} 8...
Be7 {[%clk 0:02:50.1]} 9. Re1 {[%clk 0:02:57.2]} 9... a5 {[%clk 0:02:49.5]} 10.
b3 {[%clk 0:02:36.4]} 10... Nc6 {[%clk 0:02:48.4]} 11. Bb2 {[%clk 0:02:35.7]}
11... d4 {[%clk 0:02:45.2]} 12. Nc4 {[%clk 0:02:31]} 12... Qc7 {[%clk
0:02:43.9]} 13. Bc1 {[%clk 0:02:29.6]} 13... Nd7 {[%clk 0:02:39.6]} 14. Rf1
{[%clk 0:02:22.3]} 14... e5 {[%clk 0:02:38]} 15. Bg5 {[%clk 0:02:15.4]} 15... f6
{[%clk 0:02:37.7]} 16. Bd2 {[%clk 0:02:13.6]} 16... g5 {[%clk 0:02:38.3]} 17.
Ne1 {[%clk 0:01:50]} 17... h5 {[%clk 0:02:33.6]} 18. f4 {[%clk 0:01:48.4]} 18...
gxf4 {[%clk 0:02:34.3]} 19. gxf4 {[%clk 0:01:48.4]} 19... O-O-O {[%clk
0:02:34.9]} 20. Bh3 {[%clk 0:01:46.6]} 20... Kb8 {[%clk 0:02:34.4]} 21. Kh1
{[%clk 0:01:45.8]} 21... Bc8 {[%clk 0:02:17.9]} 22. Nf3 {[%clk 0:01:40.9]} 22...
Rdg8 {[%clk 0:02:16.3]} 23. Nh4 {[%clk 0:01:39.4]} 23... Nb6 {[%clk 0:02:06.9]}
24. Bxc8 {[%clk 0:01:38.2]} 24... Kxc8 {[%clk 0:02:04.4]} 25. Nxb6+ {[%clk
0:01:35.6]} 25... Qxb6 {[%clk 0:02:05.3]} 26. f5 {[%clk 0:01:19.2]} 26... Bd8
{[%clk 0:01:54.8]} 27. Ng6 {[%clk 0:01:16.1]} 27... Rh7 {[%clk 0:01:54.6]} 28.
Qf3 {[%clk 0:01:14.3]} 28... Qc7 {[%clk 0:01:51.5]} 29. Rg1 {[%clk 0:01:12.9]}
29... Qf7 {[%clk 0:01:50.9]} 30. Rg2 {[%clk 0:01:08.8]} 30... Rgg7 {[%clk
0:01:36.9]} 31. Rag1 {[%clk 0:01:07.1]} 31... Be7 {[%clk 0:01:31.4]} 32. Nxe7+
{[%clk 0:00:58.6]} 32... Nxe7 {[%clk 0:01:21.5]} 33. Rxg7 {[%clk 0:00:57.2]}
33... Rxg7 {[%clk 0:01:22.4]} 34. Rxg7 {[%clk 0:00:57.1]} 34... Qxg7 {[%clk
0:01:23.3]} 35. Qxh5 {[%clk 0:00:56.8]} 35... Kd7 {[%clk 0:01:22.2]} 36. Qh6
{[%clk 0:00:50.9]} 36... Qg4 {[%clk 0:01:21.1]} 37. Be1 {[%clk 0:00:27.4]} 37...
Qe2 {[%clk 0:01:13.7]} 0-1

[Event "Late-Titled-Tuesday-Blitz-September-26-2023"]
[Site "Chess.com"]
[Date "2023.09.26"]
[Round "3"]
[White "Eloist"]
[Black "sergoy"]
[Result "0-1"]
[WhiteElo "2498"]
[BlackElo "2945"]
[TimeControl "180+1"]
[EndTime "14:26:13 PDT"]
[Termination "sergoy won on time"]

1. e4 {[%clk 0:02:55.7]} 1... c5 {[%clk 0:02:59]} 2. Nf3 {[%clk 0:02:53.2]} 2...
d6 {[%clk 0:02:59.4]} 3. Bb5+ {[%clk 0:02:51.9]} 3... Nd7 {[%clk 0:02:59.3]} 4.
O-O {[%clk 0:02:51.4]} 4... a6 {[%clk 0:02:59.3]} 5. Bd3 {[%clk 0:02:51.5]} 5...
Ngf6 {[%clk 0:02:59.4]} 6. Re1 {[%clk 0:02:48.9]} 6... e6 {[%clk 0:02:59.7]} 7.
c3 {[%clk 0:02:48.7]} 7... b5 {[%clk 0:02:59.5]} 8. a4 {[%clk 0:02:47.6]} 8...
c4 {[%clk 0:02:59.8]} 9. Bc2 {[%clk 0:02:41.2]} 9... Bb7 {[%clk 0:03:00.3]} 10.
axb5 {[%clk 0:02:23.2]} 10... axb5 {[%clk 0:03:00.2]} 11. Rxa8 {[%clk
0:02:22.7]} 11... Qxa8 {[%clk 0:03:00.5]} 12. Na3 {[%clk 0:02:22.4]} 12... Bxe4
{[%clk 0:02:12.9]} 13. Nxb5 {[%clk 0:02:19]} 13... Qb7 {[%clk 0:02:12.8]} 14.
Bxe4 {[%clk 0:02:09.4]} 14... Nxe4 {[%clk 0:02:13.7]} 15. Qa4 {[%clk 0:01:59.9]}
15... d5 {[%clk 0:02:14]} 16. Qa5 {[%clk 0:01:35.9]} 16... Bc5 {[%clk
0:02:07.6]} 17. Nc7+ {[%clk 0:01:17]} 17... Ke7 {[%clk 0:02:06.7]} 18. Nd4
{[%clk 0:01:04.1]} 18... Qb6 {[%clk 0:01:58.2]} 19. Qxb6 {[%clk 0:00:54.9]}
19... Bxb6 {[%clk 0:01:59.1]} 20. Nxd5+ {[%clk 0:00:46.7]} 20... exd5 {[%clk
0:01:58.3]} 21. f3 {[%clk 0:00:47]} 21... Bxd4+ {[%clk 0:01:55.7]} 22. cxd4
{[%clk 0:00:46.5]} 22... f5 {[%clk 0:01:56.4]} 23. fxe4 {[%clk 0:00:37.6]} 23...
fxe4 {[%clk 0:01:56.5]} 24. Rf1 {[%clk 0:00:18.1]} 24... Ra8 {[%clk 0:01:54.2]}
25. Kf2 {[%clk 0:00:17]} 25... Ke6 {[%clk 0:01:52.8]} 26. Ke2 {[%clk 0:00:16.5]}
26... Ra1 {[%clk 0:01:47.3]} 27. Kd1 {[%clk 0:00:15.3]} 27... Nb8 {[%clk
0:01:41]} 28. Kc2 {[%clk 0:00:15]} 28... Nc6 {[%clk 0:01:41.4]} 29. Kc3 {[%clk
0:00:15]} 29... Na5 {[%clk 0:01:41.7]} 30. b4 {[%clk 0:00:11.2]} 30... cxb3
{[%clk 0:01:35.2]} 31. Re1 {[%clk 0:00:08.1]} 31... h5 {[%clk 0:01:28.3]} 32. d3
{[%clk 0:00:04.1]} 32... Kf5 {[%clk 0:01:23.5]} 33. dxe4+ {[%clk 0:00:03.8]}
33... dxe4 {[%clk 0:01:24.1]} 34. Bd2 {[%clk 0:00:02.6]} 34... Ra2 {[%clk
0:01:24.5]} 35. Rf1+ {[%clk 0:00:01.2]} 35... Ke6 {[%clk 0:01:24.4]} 0-1